[Event "SVK ECo-C Extraliga 2021-22"]
[Site "Slovakia"]
[Date "2022.06.11"]
[Round "10.6"]
[White "Nguyen, Piotr"]
[Black "Varga, Zoltan"]
[Result "*"]
[ECO "A03"]
[WhiteElo "2407"]
[BlackElo "2390"]
[Annotator "TA"]
[PlyCount "36"]
[EventDate "2021.10.21"]
[EventType "team-tourn"]
[EventCountry "SVK"]
[SourceTitle "playchess.com"]
[Source "ChessBase"]
[SourceQuality "1"]
[TimeControl "40/5400+30:1800+30"]

{[%evp 9,36,0,0,0,0,0,0,-4,-7,-10,4,0,0,0,0,-47,-16,-13,-7,-15,0,0,0,-5,-2,-11,0,-24,-23]} 1. f4 {[%emt 0:00:03] ChessBase II} d5 {[%emt 0:00:24]} 2. Nf3 {[%emt 0:00:07]} g6 {[%emt 0:00:37]} 3. g3 {[%emt 0:00:05]} Nh6 {[%emt 0:00:13]} 4. d3 {[%emt 0:06:44]} c5 {[%emt 0:07:48]} 5. Bg2 {[%emt 0:02:14]} Bg7 {[%emt 0:01:14]} 6. O-O {[%emt 0:09:47] A03: Bird's Opening with 1...d5.} d4 {[%emt 0:00:17]} 7. e4 {[%emt 0:03:24]} dxe3 {[%emt 0:00:21]} 8. Na3 {[%emt 0:00:12] The position is equal.} Nc6 {[%emt 0:01:38]} 9. Nc4 {[%emt 0:02:16]} Nf5 {[%emt 0:00:10]} 10. c3 {[%emt 0:11:30]} O-O {[%emt 0:07:20]} 11. g4 {[%emt 0:03:41]} Nd6 {[%emt 0:10:40][%cal Bf5d6,Bd6e8,Be8c7][%mdl 32] aiming for ...Nxc4.} 12. Nce5 {[%emt 0:00:38] [#]} (12. Nxe3 $11 {feels stronger.} Bd7 13. Nd2) 12... Nxe5 $146 {[%emt 0:08:54]} (12... Na5 $5 {[%cal Rf7f6]} 13. b4 (13. Bxe3 f6 $11) 13... cxb4 14. cxb4 Nc6 15. Bxe3 Nxb4 $17) ({Predecessor:} 12... Na5 13. Bxe3 f6 14. b4 fxe5 15. fxe5 cxb4 16. cxb4 Nc6 17. exd6 Qxd6 18. Bc5 Qd5 {0-1 (38) Kuckelkorn,J-Negele,M GER corr 1993 Corr Nr. 1 [ChessBase II]}) 13. fxe5 {[%emt 0:00:56]} Ne8 {[%emt 0:00:04]} 14. h3 {[%emt 0:04:44]} Nc7 {[%emt 0:04:09]} 15. Bxe3 {[%emt 0:01:58]} b6 {[%emt 0:03:42]} 16. Qe2 {[%emt 0:15:31]} Bb7 {[%emt 0:08:04]} 17. Rad1 {[%emt 0:00:24]} Qe8 {[%emt 0:03:10]} 18. a3 {[%emt 0:07:47]} Rd8 {[%emt 0:01:12] An even fight not without its subleties.  Weighted Error Value: White=0.06 (flawless) /Black=0.05 (flawless)} *

[Event "SVK ECo-C Extraliga 2021-22"]
[Site "Slovakia"]
[Date "2022.06.11"]
[Round "10.6"]
[White "Halak, Miklos"]
[Black "Zpevak, Pavel"]
[Result "1/2-1/2"]
[ECO "B40"]
[WhiteElo "2251"]
[BlackElo "2373"]
[Annotator "TA"]
[PlyCount "29"]
[EventDate "2021.10.21"]
[EventType "team-tourn"]
[EventCountry "SVK"]
[SourceTitle "playchess.com"]
[Source "ChessBase"]
[SourceQuality "1"]
[TimeControl "40/5400+30:1800+30"]

{[%evp 17,18,0,4]} 1. e4 {[%emt 0:00:53]} c5 {[%emt 0:00:43]} 2. Nf3 {[%emt 0:04:08]} e6 {[%emt 0:00:10]} 3. c3 {[%emt 0:00:29]} Nf6 {[%emt 0:00:26]} 4. e5 {[%emt 0:00:37]} Nd5 {[%emt 0:00:08]} 5. d4 {[%emt 0:00:08]} cxd4 {[%emt 0:00:07]} 6. cxd4 {[%emt 0:00:12]} d6 {[%emt 0:00:10]} 7. Nc3 {[%emt 0:03:16]} Nxc3 {[%emt 0:00:56]} 8. bxc3 {[%emt 0:00:07]} Qc7 {[%emt 0:00:22]} 9. Bd2 {[%emt 0:01:18]} Nd7 {[%emt 0:00:29] [#]} {Predecessor:} 10. exd6 $146 {B22: Sicilian: 2 c3.} Bxd6 11. Bd3 b6 12. Ng5 Bb7 13. Ne4 Bf4 14. Bxf4 Qxf4 15. Qd2 {½-½ (15) Nakamura,H (2736)-Artemiev,V (2716) Chess.com INT 2020} 1/2-1/2

[Event "SVK ECo-C Extraliga 2021-22"]
[Site "Slovakia"]
[Date "2022.06.11"]
[Round "10.7"]
[White "Czebe, Attila"]
[Black "Jacko, Vladimir"]
[Result "1/2-1/2"]
[ECO "B43"]
[WhiteElo "2366"]
[BlackElo "2389"]
[Annotator "TA"]
[PlyCount "15"]
[EventDate "2021.10.21"]
[EventType "team-tourn"]
[EventCountry "SVK"]
[SourceTitle "playchess.com"]
[Source "ChessBase"]
[SourceQuality "1"]
[TimeControl "40/5400+30:1800+30"]

{[%evp 9,15,24,35,14,29,25,38,-1280]} 1. e4 {[%emt 0:01:06]} c5 {[%emt 0:00:06]} 2. Nc3 {[%emt 0:00:56]} e6 {[%emt 0:00:44]} 3. Nge2 {[%emt 0:05:17]} a6 {[%emt 0:02:58]} 4. d4 {[%emt 0:01:28]} cxd4 {[%emt 0:00:07]} 5. Nxd4 {[%emt 0:00:34]} Qc7 {[%emt 0:00:43]} 6. Qd3 {[%emt 0:05:15] B43: Sicilian: Kan Variation: 5 Nc3.} Nf6 {[%emt 0:01:55]} 7. Qg3 {[%emt 0:01:41]} Qxg3 {[%emt 0:02:56] [#]} 8. Nb1 $146 {[%mdl 40960] Weighted Error Value: White=0.08 (flawless) /Black=0.08 (flawless) . An unexpected result.} ({But not} 8. fxg3 Bb4 $11) (8. hxg3 $14 Bb4 9. e5) ({Predecessor:} 8. hxg3 d6 9. f3 Nc6 10. Nxc6 bxc6 11. g4 d5 12. g5 Nd7 13. Bd2 Bb4 14. O-O-O {0-1 (58) Hammer,J (2628)-Neiksans,A (2627) Chess.com INT 2017}) 1/2-1/2

[Event "SVK ECo-C Extraliga 2021-22"]
[Site "Slovakia"]
[Date "2022.06.11"]
[Round "10.7"]
[White "Kopera, Michal"]
[Black "Borosova, Zuzana"]
[Result "1/2-1/2"]
[ECO "C55"]
[WhiteElo "2135"]
[BlackElo "2259"]
[Annotator "TA"]
[PlyCount "122"]
[EventDate "2021.10.21"]
[EventType "team-tourn"]
[EventCountry "SVK"]
[SourceTitle "playchess.com"]
[Source "ChessBase"]
[SourceQuality "1"]
[TimeControl "40/5400+30:1800+30"]

{[%evp 13,122,4,0,-6,7,-16,-8,-15,0,-8,3,-14,0,-12,0,-4,-1,-20,-17,-19,-21,-28,-22,-19,-2,-6,-2,-22,-7,-35,-13,-13,-10,-16,-15,-21,-22,-33,-25,-42,-29,-39,-26,-32,-33,-37,-17,-19,-19,-19,-17,-21,0,0,-3,-34,-18,-31,-10,-10,-6,-6,-10,-17,-3,-3,-4,-10,-6,-12,-6,-27,-10,-10,-4,-20,0,0,0,0,0,0,0,0,0,0,0,0,0,0,0,0,0,-6,0,0,0,0,0,0,0,0,0,0,0,0,0,-6,0,-6,0]} 1. e4 {[%emt 0:00:04]} e5 {[%emt 0:00:15]} 2. Nf3 {[%emt 0:00:06]} Nc6 {[%emt 0:00:06]} 3. Bc4 {[%emt 0:00:32]} Nf6 {[%emt 0:02:32]} 4. d3 {[%emt 0:00:23]} Be7 {[%emt 0:01:30]} 5. O-O {[%emt 0:03:40]} O-O {[%emt 0:00:14]} 6. Nc3 {[%emt 0:01:30]} d6 {[%emt 0:01:11]} 7. h3 {[%emt 0:06:21]} Na5 {[%emt 0:05:41]} 8. Re1 {[%emt 0:02:10] C55: Two Knights: 4 d3, 4 d4 exd4 5 e5 and Max Lange Attack.} h6 {[%emt 0:12:12] [#]} 9. Qe2 $146 {[%emt 0:13:06]} ({Predecessor:} 9. Bb3 Nxb3 10. axb3 c5 11. Ne2 Be6 12. c4 Nh7 13. Ng3 Ng5 14. Nh2 Qd7 15. Ng4 {½-½ (15) Medina Diaz,R (2317)-Hernandez Jimenez,A (2169) Mexico City 2021}) 9... Nxc4 {[%emt 0:11:08]} 10. dxc4 {[%emt 0:00:20]} c6 {[%emt 0:02:32]} 11. c5 {[%emt 0:09:00]} Nd7 {[%emt 0:18:28]} 12. cxd6 {[%emt 0:00:13]} Bxd6 {[%emt 0:00:06]} 13. Be3 {[%emt 0:01:32]} Qf6 {[%emt 0:01:07]} 14. Rad1 {[%emt 0:16:27]} Bc7 {[%emt 0:01:55]} 15. Rd2 {[%emt 0:15:17]} Re8 {[%emt 0:06:18]} 16. Red1 {[%emt 0:00:52]} Nf8 {[%emt 0:00:17]} 17. Ne1 {[%emt 0:08:20]} Ng6 {[%emt 0:03:13]} 18. Qf3 {[%emt 0:00:31]} Qxf3 {[%emt 0:02:24]} (18... Nf4 {looks sharper.} 19. a4 Be6 20. Qg3 Bc4) 19. Nxf3 {[%emt 0:00:09]} b6 {[%emt 0:00:17]} 20. Ne2 {[%emt 0:00:32]} Be6 {[%emt 0:02:52]} 21. Nc1 {[%emt 0:02:49]} Rad8 {[%emt 0:03:07]} 22. Rxd8 {[%emt 0:00:58]} Rxd8 {[%emt 0:00:04]} 23. Rxd8+ {[%emt 0:00:17]} Bxd8 {[%emt 0:00:01]} 24. Nd3 {[%emt 0:00:12]} f6 {[%emt 0:01:04]} 25. Nd2 {[%emt 0:00:41]} Kf7 {[%emt 0:04:04]} ({Don't do} 25... Bxa2 26. b3 $16 (26. Nb4 Be6 $16)) 26. Nb4 {[%emt 0:02:09]} Ne7 {[%emt 0:01:26]} 27. c4 {[%emt 0:01:26]} Ke8 {[%emt 0:10:04]} 28. b3 {[%emt 0:00:42]} Kd7 {[%emt 0:00:45]} 29. Nd3 {[%emt 0:00:19]} Bc7 {[%emt 0:03:22]} 30. f3 {[%emt 0:00:32]} g5 {[%emt 0:05:20]} 31. h4 {[%emt 0:00:46]} Ng6 {[%emt 0:01:09]} 32. hxg5 {[%emt 0:00:36]} fxg5 {[%emt 0:01:00]} 33. g4 {[%emt 0:00:56]} Nf4 {[%emt 0:00:40]} 34. Nxf4 {[%emt 0:00:26]} gxf4 $11 {[%emt 0:00:14][%mdl 4096] Endgame KBB-KBN} 35. Bf2 {[%emt 0:00:11]} Bd6 {[%emt 0:00:24]} 36. Kf1 {[%emt 0:00:37]} Be7 {[%emt 0:00:20]} 37. Ke2 {[%emt 0:00:26]} Bf7 {[%emt 0:00:05]} 38. Nb1 {[%emt 0:03:59]} h5 {[%emt 0:00:15]} 39. gxh5 {[%emt 0:00:10]} Bxh5 {[%emt 0:00:05]} 40. Be1 {[%emt 0:00:34]} Bc5 {[%emt 0:00:54]} 41. Bc3 {[%emt 0:30:20]} Ke6 {[%emt 0:31:10]} 42. Nd2 {[%emt 0:03:10]} a5 {[%emt 0:00:00]} 43. Nb1 {[%emt 0:00:00] The position is equal.} Kd6 {[%emt 0:00:00]} 44. Be1 {[%emt 0:00:00]} Bd4 {[%emt 0:00:00]} 45. Na3 {[%emt 0:00:00]} Be8 {[%emt 0:00:00]} 46. Nc2 {[%emt 0:00:00]} Bb2 {[%emt 0:00:00]} 47. Kd3 {[%emt 0:00:00]} Bf7 {[%emt 0:00:14]} 48. a4 {[%emt 0:00:00]} Bh5 {[%emt 0:00:38]} 49. Ke2 {[%emt 0:00:00]} Be8 {[%emt 0:00:18]} 50. Kd3 {[%emt 0:00:00]} Bd7 {[%emt 0:02:51]} 51. Ke2 {[%emt 0:00:00]} Be6 {[%emt 0:01:18]} 52. Kd3 {[%emt 0:00:00]} Bf7 {[%emt 0:00:14]} 53. Ke2 {[%emt 0:00:00]} Bh5 {[%emt 0:01:01]} 54. Bd2 {[%emt 0:00:00]} Kc5 {[%emt 0:00:30]} 55. Ne1 {[%emt 0:00:27] [#] Strongly threatening Nd3+.} Bd4 {[%emt 0:00:27]} 56. Nd3+ {[%emt 0:00:39]} Kd6 {[%emt 0:00:02]} 57. Be1 {[%emt 0:01:21]} Bf7 {[%emt 0:00:13]} 58. Kd1 {[%emt 0:02:48]} Bh5 {[%emt 0:00:32]} 59. Ke2 {[%emt 0:00:03]} Bf7 {[%emt 0:00:08]} 60. Kd1 {[%emt 0:00:04]} Bh5 {[%emt 0:00:49]} 61. Ke2 {[%emt 0:00:13]} Bf7 {[%emt 0:00:15] Weighted Error Value: White=0.05 (flawless) /Black=0.06 (flawless)} 1/2-1/2